fUSD/lending_fUSD_20250510
["ID","MTS","AMOUNT","RATE_DAILY","PERIOD"]
[360658827,1746918653731,-400.0,0.00019743,2]
[360658828,1746918653740,-882.4,0.00019743,2]
[360658829,1746918653750,-400.0,0.00019743,2]
[360658830,1746918653759,-638.03,0.00019743,2]
[360658831,1746918653769,-1319.65,0.00019743,2]
[360658832,1746918653826,-671.85,0.00019743,2]
[360658833,1746918653836,-400.0,0.00019743,2]
[360658834,1746918653846,-400.0,0.00019743,2]
[360658835,1746918653855,-400.0,0.00019743,2]
[360658836,1746918653865,-549.29,0.00019743,2]
[360658837,1746918653874,-1108.91,0.00019743,2]
[360658838,1746918653884,-500.0,0.00019743,2]
[360658839,1746918653894,-1641.78,0.00019743,2]
[360658840,1746918653903,-400.0,0.00019743,2]
[360658841,1746918653913,-1551.21,0.00019743,2]
[360658842,1746918653922,-498.78,0.00019743,2]
[360658843,1746918653931,-400.0,0.00019743,2]
[360658844,1746918653940,-400.0,0.00019743,2]
[360658845,1746918653949,-1902.18,0.00019743,2]
[360658846,1746918653959,-400.0,0.00019743,2]
[360658847,1746918653969,-400.0,0.00019743,2]
[360658848,1746918653977,-608.71,0.00019743,2]
[360658849,1746918653987,-945.17,0.00019743,2]
[360658850,1746918653996,-150.0,0.00019743,2]
[360658851,1746918654007,-400.0,0.00019743,2]
[360658852,1746918654016,-400.0,0.00019743,2]
[360658853,1746918654025,-400.0,0.00019743,2]
[360658854,1746918654034,-400.0,0.00019743,2]
[360658855,1746918654044,-400.0,0.00019743,2]
[360658856,1746918654053,-400.0,0.00019743,2]
[360658857,1746918654062,-400.0,0.00019743,2]
[360658858,1746918654072,-400.0,0.00019743,2]
[360658859,1746918654081,-400.0,0.00019743,2]
[360658860,1746918654090,-400.0,0.00019743,2]
[360658861,1746918654099,-400.0,0.00019743,2]
[360658862,1746918654107,-400.0,0.00019743,2]
[360658863,1746918654116,-400.0,0.00019743,2]
[360658864,1746918654125,-400.0,0.00019743,2]
[360658865,1746918654134,-400.0,0.00019743,2]
[360658866,1746918654143,-400.0,0.00019743,2]
[360658867,1746918654152,-400.0,0.00019743,2]
[360658868,1746918654162,-400.0,0.00019743,2]
[360658869,1746918654171,-400.0,0.00019743,2]
[360658870,1746918654180,-400.0,0.00019743,2]
[360658871,1746918654189,-400.0,0.00019743,2]
[360658872,1746918654202,-400.0,0.00019743,2]
[360658873,1746918654211,-400.0,0.00019743,2]
[360658874,1746918654220,-400.0,0.00019743,2]
[360658875,1746918654229,-400.0,0.00019743,2]
[360658876,1746918654239,-400.0,0.00019743,2]
[360658877,1746918654248,-400.0,0.00019743,2]
[360658878,1746918654257,-400.0,0.00019743,2]
[360658879,1746918654266,-400.0,0.00019743,2]
[360658880,1746918654276,-605.86942249,0.00019744,2]
[360658881,1746918654285,-400.0,0.00019745,2]
[360658882,1746918654294,-400.0,0.00019745,2]
[360658883,1746918654303,-400.0,0.00019745,2]
[360658884,1746918654312,-166.38,0.00019745,2]
[360658885,1746918654321,-400.0,0.00019745,2]
[360658886,1746918654330,-400.0,0.00019745,2]
[360658887,1746918654338,-400.0,0.00019745,2]
[360658888,1746918654347,-400.0,0.00019745,2]
[360658889,1746918654356,-400.0,0.00019745,2]
[360658890,1746918654366,-632.11,0.00019745,2]
[360658891,1746918654376,-400.0,0.00019745,2]
[360658892,1746918654384,-400.0,0.00019745,2]
[360658893,1746918654394,-200.90904522,0.00019745,2]
[360658894,1746918654403,-400.0,0.00019745,2]
[360658895,1746918654412,-400.0,0.00019745,2]
[360658896,1746918654421,-400.0,0.00019745,2]
[360658897,1746918654430,-400.0,0.00019745,2]
[360658898,1746918654439,-313.75,0.00019745,2]
[360658899,1746918654448,-151.843592,0.00019746,2]
[360658900,1746918654457,-325.745206,0.00019746,2]
[360658901,1746918654466,-23438.389125,0.00019746,2]
[360658902,1746918654475,-152.985586,0.00019746,2]
[360658903,1746918654484,-23438.389125,0.00019746,2]
[360658904,1746918654494,-152.985585,0.00019746,2]
[360658905,1746918654503,-2956.778513,0.00019746,2]
[360658906,1746918654511,-150.0,0.00019753,2]
[360658907,1746918654520,-500.0,0.00019753,2]
[360658908,1746918654530,-500.0,0.00019753,2]
[360658909,1746918654538,-156.82515075,0.00019758,2]
[360658910,1746918654547,-200.0,0.00019768,2]
[360658911,1746918654557,-158.8483653,0.00019771,2]
[360658912,1746918654566,-605.86942249,0.00019772,2]
[360658913,1746918654575,-291.8314525,0.00019773,2]
[360658914,1746918654585,-500.0,0.00019773,2]
[360658915,1746918654594,-500.0,0.00019773,2]
[360658916,1746918654603,-500.0,0.00019773,2]
[360658917,1746918654612,-636.0258398,0.00019773,2]
[360658918,1746918654622,-490.46388571,0.00019773,2]
[360658919,1746918654631,-500.0,0.00019773,2]
[360658920,1746918654641,-500.0,0.00019773,2]
[360658921,1746918654650,-500.0,0.00019773,2]
[360658922,1746918654661,-500.0,0.00019773,2]
[360658923,1746918654670,-500.0,0.00019773,2]
[360658924,1746918654679,-500.0,0.00019773,2]
[360658925,1746918654689,-500.0,0.00019773,2]
[360658926,1746918654699,-500.0,0.00019773,2]
[360658927,1746918654708,-500.0,0.00019773,2]
[360658928,1746918654718,-550.74197227,0.00019773,2]
[360658929,1746918654727,-500.0,0.00019773,2]
[360658930,1746918654736,-530.01864699,0.00019773,2]
[360658931,1746918654746,-500.0,0.00019773,2]
[360658932,1746918654755,-200.0,0.00019778,2]
[360658933,1746918654765,-150.0,0.00019781,2]
[360658934,1746918654774,-500.0,0.00019781,2]
[360658935,1746918654783,-500.0,0.00019781,2]
[360658936,1746918654793,-1663.13742862,0.00019794,2]
[360658937,1746918654802,-1047.10450484,0.00019794,2]
[360658938,1746918654811,-424.10859574,0.00019798,2]
[360658939,1746918654821,-250.0,0.00019798,2]
[360658940,1746918654830,-1446.51743548,0.00019798,2]
[360658941,1746918654839,-250.0,0.00019799,2]
[360658942,1746918654849,-66437.87532656,0.00019799,2]
[360658943,1746918654858,-4346.93976817,0.000198,2]
[360658944,1746918654868,-150.0,0.00019801,2]
[360658945,1746918654877,-150.0,0.00019801,2]
[360658946,1746918654887,-1446.51743548,0.00019802,2]
[360658947,1746918654896,-156.82515074,0.00019805,2]
[360658948,1746918654905,-250.0,0.00019808,2]
[360658949,1746918654914,-500.0,0.00019808,2]
[360658950,1746918654923,-500.0,0.00019808,2]
[360658951,1746918654933,-291.8314525,0.00019815,2]
[360658952,1746918654942,-200.0,0.00019821,2]
[360658953,1746918654953,-1680.0,0.00019826,2]
[360658954,1746918654962,-66437.87532656,0.00019826,2]
[360658955,1746918654971,-200.0,0.00019829,2]
[360658956,1746918654982,-200.0,0.00019832,2]
[360658957,1746918654992,-500.0,0.00019836,2]
[360658958,1746918655002,-500.0,0.00019836,2]
[360658959,1746918655012,-150.0,0.0001984,2]
[360658960,1746918655022,-200.0,0.00019843,2]
[360658961,1746918655032,-1446.51743548,0.00019845,2]
[360658962,1746918655041,-151.0,0.00019848,2]
[360658963,1746918655052,-215.0738,0.0001985,2]
[360658964,1746918655062,-156.82515074,0.00019853,2]
[360658965,1746918655071,-200.0,0.00019855,2]
[360658966,1746918655080,-400.0,0.00019857,2]
[360658967,1746918655091,-400.0,0.00019857,2]
[360658968,1746918655102,-2593.14,0.00019857,2]
[360658969,1746918655111,-400.0,0.00019857,2]
[360658970,1746918655121,-400.0,0.00019857,2]
[360658971,1746918655131,-1339.39,0.00019857,2]
[360658972,1746918655140,-400.0,0.00019857,2]
[360658973,1746918655150,-1363.06,0.00019857,2]
[360658974,1746918655160,-1055.27,0.00019857,2]
[360658975,1746918655169,-400.0,0.00019857,2]
[360658976,1746918655179,-400.0,0.00019857,2]
[360658977,1746918655190,-406.29,0.00019857,2]
[360658978,1746918655201,-1289.69,0.00019857,2]
[360658979,1746918655210,-533.94,0.00019857,2]
[360658980,1746918655220,-6835.49,0.00019857,2]
[360658981,1746918655229,-802.89,0.00019857,2]
[360658982,1746918655240,-1277.05,0.00019857,2]
[360658983,1746918655249,-908.53,0.00019857,2]
[360658984,1746918655259,-291.8314525,0.00019858,2]
[360658985,1746918655268,-400.0,0.00019858,2]
[360658986,1746918655277,-856.38,0.00019858,2]
[360658987,1746918655288,-400.0,0.00019858,2]
[360658988,1746918655297,-400.0,0.00019858,2]
[360658989,1746918655306,-400.0,0.00019858,2]
[360658990,1746918655315,-400.0,0.00019858,2]
[360658991,1746918655325,-212.02,0.00019858,2]
[360658992,1746918655334,-400.0,0.00019858,2]
[360658993,1746918655343,-400.0,0.00019858,2]
[360658994,1746918655353,-400.0,0.00019858,2]
[360658995,1746918655363,-815.58,0.00019858,2]
[360658996,1746918655372,-408.02,0.00019858,2]
[360658997,1746918655382,-608.74,0.00019858,2]
[360658998,1746918655391,-400.0,0.00019858,2]
[360658999,1746918655401,-411.59,0.00019858,2]
[360659000,1746918655412,-400.0,0.00019858,2]
[360659001,1746918655422,-400.0,0.00019858,2]
[360659002,1746918655432,-580.46,0.00019858,2]
[360659003,1746918655441,-400.0,0.00019858,2]
[360659004,1746918655451,-400.0,0.00019858,2]
[360659005,1746918655461,-400.0,0.00019858,2]
[360659006,1746918655471,-450.0,0.00019858,2]
[360659007,1746918655480,-400.0,0.00019858,2]
[360659008,1746918655490,-400.0,0.00019858,2]
[360659009,1746918655499,-400.0,0.00019858,2]
[360659010,1746918655509,-400.0,0.00019858,2]
[360659011,1746918655518,-400.0,0.00019858,2]
[360659012,1746918655528,-400.0,0.00019858,2]
[360659013,1746918655538,-554.52,0.00019858,2]
[360659014,1746918655548,-536.27,0.00019858,2]
[360659015,1746918655558,-400.0,0.00019858,2]
[360659016,1746918655568,-690.21,0.00019858,2]
[360659017,1746918655577,-400.0,0.00019858,2]
[360659018,1746918655587,-400.0,0.00019858,2]
[360659019,1746918655597,-400.0,0.00019858,2]
[360659020,1746918655606,-400.0,0.00019858,2]
[360659021,1746918655616,-617.37,0.00019858,2]
[360659022,1746918655626,-400.0,0.00019858,2]
[360659023,1746918655635,-449.42,0.00019858,2]
[360659024,1746918655645,-506.87,0.00019858,2]
[360659025,1746918655656,-400.0,0.00019858,2]
[360659026,1746918655666,-400.0,0.00019858,2]
[360659027,1746918655681,-400.0,0.00019858,2]
[360659028,1746918655691,-400.0,0.00019858,2]
[360659029,1746918655711,-400.0,0.00019858,2]
[360659030,1746918655723,-882.4,0.00019858,2]
[360659031,1746918655734,-410.54,0.00019858,2]
[360659032,1746918655745,-400.0,0.00019858,2]
[360659033,1746918655755,-400.0,0.00019858,2]
[360659034,1746918655766,-400.0,0.00019858,2]
[360659035,1746918655776,-400.0,0.00019858,2]
[360659036,1746918655787,-400.0,0.00019858,2]
[360659037,1746918655796,-400.0,0.00019858,2]
[360659038,1746918655807,-400.0,0.00019858,2]
[360659039,1746918655817,-400.0,0.00019858,2]
[360659040,1746918655828,-638.03,0.00019858,2]
[360659041,1746918655839,-1319.65,0.00019858,2]
[360659042,1746918655848,-671.85,0.00019858,2]
[360659043,1746918655859,-400.0,0.00019858,2]
[360659044,1746918655868,-400.0,0.00019858,2]
[360659045,1746918655878,-400.0,0.00019858,2]
[360659046,1746918655888,-549.29,0.00019858,2]
[360659047,1746918655898,-1108.91,0.00019858,2]
[360659048,1746918655908,-500.0,0.00019858,2]
[360659049,1746918655918,-1641.78,0.00019858,2]
[360659050,1746918655928,-400.0,0.00019858,2]
[360659051,1746918655939,-1551.21,0.00019858,2]
[360659052,1746918655949,-498.78,0.00019858,2]
[360659053,1746918655959,-400.0,0.00019858,2]
[360659054,1746918655969,-400.0,0.00019858,2]
[360659055,1746918655979,-1902.18,0.00019858,2]
[360659056,1746918655989,-400.0,0.00019858,2]
[360659057,1746918655999,-400.0,0.00019858,2]
[360659058,1746918656010,-400.0,0.00019858,2]
[360659059,1746918656020,-400.0,0.00019858,2]
[360659060,1746918656030,-400.0,0.00019858,2]
[360659061,1746918656040,-945.17,0.00019858,2]
[360659062,1746918656050,-608.71,0.00019858,2]
[360659063,1746918656059,-400.0,0.00019858,2]
[360659064,1746918656069,-400.0,0.00019858,2]
[360659065,1746918656079,-400.0,0.00019858,2]
[360659066,1746918656089,-400.0,0.00019858,2]
[360659067,1746918656099,-400.0,0.00019858,2]
[360659068,1746918656108,-400.0,0.00019858,2]
[360659069,1746918656119,-400.0,0.00019858,2]
[360659070,1746918656128,-400.0,0.00019858,2]
[360659071,1746918656138,-388.71,0.00019858,2]
[360659072,1746918656148,-400.0,0.00019858,2]
[360659073,1746918656159,-400.0,0.00019858,2]
[360659074,1746918656168,-400.0,0.00019858,2]
[360659075,1746918656178,-400.0,0.00019858,2]
[360659076,1746918656188,-400.0,0.00019858,2]
[360659077,1746918656200,-400.0,0.00019858,2]
[360659078,1746918656211,-400.0,0.00019858,2]
[360659079,1746918656221,-400.0,0.00019858,2]
[360659080,1746918656231,-400.0,0.00019858,2]
[360659081,1746918656243,-400.0,0.00019858,2]
[360659082,1746918656253,-400.0,0.00019858,2]
[360659083,1746918656264,-400.0,0.00019858,2]
[360659084,1746918656274,-400.0,0.00019858,2]
[360659085,1746918656284,-400.0,0.00019858,2]
[360659086,1746918656294,-150.0,0.00019858,2]
[360659087,1746918656304,-632.11,0.00019858,2]
[360659088,1746918656314,-400.0,0.00019858,2]
[360659089,1746918656323,-400.0,0.00019858,2]
[360659090,1746918656333,-400.0,0.00019858,2]
[360659091,1746918656343,-400.0,0.00019858,2]
[360659092,1746918656353,-400.0,0.00019858,2]
[360659093,1746918656363,-400.0,0.00019858,2]
[360659094,1746918656373,-400.0,0.00019858,2]
[360659095,1746918656383,-400.0,0.00019858,2]
[360659096,1746918656393,-400.0,0.00019858,2]
[360659097,1746918656403,-400.0,0.00019858,2]
[360659098,1746918656414,-683.05,0.00019858,2]
[360659099,1746918656424,-400.0,0.00019858,2]
[360659100,1746918656434,-400.0,0.00019858,2]
[360659101,1746918656443,-400.0,0.00019858,2]
[360659102,1746918656454,-400.0,0.00019858,2]
[360659103,1746918656463,-400.0,0.00019858,2]
[360659104,1746918656473,-400.0,0.00019858,2]
[360659105,1746918656483,-400.0,0.00019858,2]
[360659106,1746918656493,-400.0,0.00019858,2]
[360659107,1746918656503,-400.0,0.00019858,2]
[360659108,1746918656513,-400.0,0.00019858,2]
[360659109,1746918656524,-296.16856688,0.00019858,2]
[360659110,1746918656533,-400.0,0.00019858,2]
[360659111,1746918656543,-400.0,0.00019858,2]
[360659112,1746918656553,-151.0,0.00019859,2]
[360659113,1746918656563,-151.0,0.00019859,2]
[360659114,1746918656573,-155.521842,0.00019859,2]
[360659115,1746918656583,-217.404512,0.00019859,2]
[360659116,1746918656593,-151.0,0.00019859,2]
[360659117,1746918656603,-151.0,0.00019859,2]
[360659118,1746918656613,-151.0,0.00019859,2]
[360659119,1746918656623,-73823.7913609,0.00019859,2]
[360659120,1746918656634,-2308.80397,0.00019859,2]
[360659121,1746918656644,-2308.80397,0.00019859,2]
[360659122,1746918656654,-151.0,0.00019859,2]
[360659123,1746918656664,-194.360305,0.00019859,2]
[360659124,1746918656674,-4881.1827412,0.00019859,2]
[360659125,1746918656684,-151.0,0.00019859,2]
[360659126,1746918656694,-2373.5049993,0.00019859,2]
[360659127,1746918656704,-151.0,0.00019859,2]
[360659128,1746918656714,-363.945222,0.00019859,2]
[360659129,1746918656724,-363.945222,0.00019859,2]
[360659130,1746918656734,-200.0,0.0001986,2]
[360659131,1746918656744,-500.0,0.00019863,2]
[360659132,1746918656754,-558.01,0.00019864,2]
[360659133,1746918656764,-400.0,0.00019864,2]
[360659134,1746918656774,-485.85,0.00019864,2]
[360659135,1746918656784,-400.0,0.00019864,2]
[360659136,1746918656794,-400.0,0.00019864,2]
[360659137,1746918656803,-400.0,0.00019864,2]
[360659138,1746918656814,-400.0,0.00019864,2]
[360659139,1746918656823,-400.0,0.00019864,2]
[360659140,1746918656834,-400.0,0.00019864,2]
[360659141,1746918656844,-440.97,0.00019864,2]
[360659142,1746918656854,-208.00856755,0.00019864,2]
[360659143,1746918656864,-400.0,0.00019864,2]
[360659144,1746918656874,-300.0,0.00019864,2]
[360659145,1746918656883,-400.0,0.00019864,2]
[360659146,1746918656893,-400.0,0.00019864,2]
[360659147,1746918656903,-400.0,0.00019864,2]
[360659148,1746918656913,-527.17,0.00019864,2]
[360659149,1746918656923,-393.23,0.00019864,2]
[360659150,1746918656932,-400.0,0.00019864,2]
[360659151,1746918656942,-151.0,0.00019864,2]
[360659152,1746918656952,-151.0,0.00019864,2]
[360659153,1746918656962,-151.0,0.00019864,2]
[360659154,1746918656972,-151.0,0.00019864,2]
[360659155,1746918656982,-151.0,0.00019864,2]
[360659156,1746918656992,-151.0,0.00019864,2]
[360659157,1746918657002,-400.0,0.0001987,2]
[360659158,1746918657011,-856.38,0.0001987,2]
[360659159,1746918657021,-400.0,0.0001987,2]
[360659160,1746918657031,-400.0,0.0001987,2]
[360659161,1746918657041,-374.16,0.0001987,2]
[360659162,1746918657050,-410.54,0.0001987,2]
[360659163,1746918657060,-400.0,0.0001987,2]
[360659164,1746918657069,-400.0,0.0001987,2]
[360659165,1746918657078,-400.0,0.0001987,2]
[360659166,1746918657088,-345.53574343,0.0001987,2]
[360659167,1746918657098,-400.0,0.0001987,2]
[360659168,1746918657107,-400.0,0.0001987,2]
[360659169,1746918657117,-400.0,0.0001987,2]
[360659170,1746918657126,-544.22951739,0.0001987,2]
[360659171,1746918657136,-400.0,0.0001987,2]
[360659172,1746918657145,-400.0,0.0001987,2]
[360659173,1746918657155,-400.0,0.0001987,2]
[360659174,1746918657165,-400.0,0.0001987,2]
[360659175,1746918657175,-400.0,0.0001987,2]
[360659176,1746918657186,-2593.14,0.0001987,2]
[360659177,1746918657196,-2593.14,0.0001987,2]
[360659178,1746918657209,-400.0,0.0001987,2]
[360659179,1746918657219,-400.0,0.0001987,2]
[360659180,1746918657229,-400.0,0.0001987,2]
[360659181,1746918657239,-1339.39,0.0001987,2]
[360659182,1746918657250,-400.0,0.0001987,2]
[360659183,1746918657260,-1339.39,0.0001987,2]
[360659184,1746918657270,-400.0,0.0001987,2]
[360659185,1746918657281,-400.0,0.0001987,2]
[360659186,1746918657291,-400.0,0.0001987,2]
[360659187,1746918657301,-1363.06,0.0001987,2]
[360659188,1746918657311,-1363.06,0.0001987,2]
[360659189,1746918657321,-1055.27,0.0001987,2]
[360659190,1746918657330,-1055.27,0.0001987,2]
[360659191,1746918657340,-400.0,0.0001987,2]
[360659192,1746918657350,-400.0,0.0001987,2]
[360659193,1746918657360,-292.86335353,0.0001987,2]
[360659194,1746918657370,-406.29,0.0001987,2]
[360659195,1746918657380,-406.29,0.0001987,2]
[360659196,1746918657390,-400.0,0.0001987,2]
[360659197,1746918657399,-400.0,0.0001987,2]
[360659198,1746918657411,-400.0,0.0001987,2]
[360659199,1746918657421,-400.0,0.0001987,2]
[360659200,1746918657431,-1289.69,0.0001987,2]
[360659201,1746918657441,-1289.69,0.0001987,2]
[360659202,1746918657452,-533.94,0.0001987,2]
[360659203,1746918657461,-533.94,0.0001987,2]
[360659204,1746918657471,-400.0,0.0001987,2]
[360659205,1746918657482,-400.0,0.0001987,2]
[360659206,1746918657492,-6835.49,0.0001987,2]
[360659207,1746918657502,-632.11,0.0001987,2]
[360659208,1746918657512,-6835.49,0.0001987,2]
[360659209,1746918657521,-802.89,0.0001987,2]
[360659210,1746918657532,-802.89,0.0001987,2]
[360659211,1746918657543,-400.0,0.0001987,2]
[360659212,1746918657554,-400.0,0.0001987,2]
[360659213,1746918657564,-1000.0,0.0001987,2]
[360659214,1746918657574,-400.0,0.0001987,2]
[360659215,1746918657584,-683.05,0.0001987,2]
[360659216,1746918657594,-400.0,0.0001987,2]
[360659217,1746918657604,-1277.05,0.0001987,2]
[360659218,1746918657615,-1277.05,0.0001987,2]
[360659219,1746918657626,-400.0,0.0001987,2]
[360659220,1746918657638,-400.0,0.0001987,2]
[360659221,1746918657818,-400.0,0.0001987,2]
[360659222,1746918657828,-908.53,0.0001987,2]
[360659223,1746918657838,-908.53,0.0001987,2]
[360659224,1746918657847,-377.93,0.0001987,2]
[360659225,1746918657857,-500.0,0.00019871,2]
[360659226,1746918657867,-280.89640898,0.00019871,2]
[360659227,1746918657877,-558.01,0.00019871,2]
[360659228,1746918657886,-558.01,0.00019871,2]
[360659229,1746918657896,-558.01,0.00019871,2]
[360659230,1746918657905,-558.01,0.00019871,2]
[360659231,1746918657919,-558.01,0.00019871,2]
[360659232,1746918657928,-558.01,0.00019871,2]
[360659233,1746918657938,-558.01,0.00019871,2]
[360659234,1746918657948,-558.01,0.00019871,2]
[360659235,1746918657957,-400.0,0.00019871,2]
[360659236,1746918657966,-400.0,0.00019871,2]
[360659237,1746918657975,-400.0,0.00019871,2]
[360659238,1746918657985,-400.0,0.00019871,2]
[360659239,1746918657994,-400.0,0.00019871,2]
[360659240,1746918658004,-319.61125719,0.00019871,2]
[360659241,1746918658015,-485.85,0.00019871,2]
[360659242,1746918658025,-485.85,0.00019871,2]
[360659243,1746918658036,-485.85,0.00019871,2]
[360659244,1746918658046,-485.85,0.00019871,2]
[360659245,1746918658055,-485.85,0.00019871,2]
[360659246,1746918658064,-485.85,0.00019871,2]
[360659247,1746918658074,-485.85,0.00019871,2]
[360659248,1746918658084,-485.85,0.00019871,2]
[360659249,1746918658095,-394.42983191,0.00019871,2]
[360659250,1746918658104,-400.0,0.00019871,2]
[360659251,1746918658113,-400.0,0.00019871,2]
[360659252,1746918658123,-400.0,0.00019871,2]
[360659253,1746918658133,-400.0,0.00019871,2]
[360659254,1746918658142,-400.0,0.00019871,2]
[360659255,1746918658153,-400.0,0.00019871,2]
[360659256,1746918658163,-161.4115648,0.00019871,2]
[360659257,1746918658173,-400.0,0.00019871,2]
[360659258,1746918658182,-400.0,0.00019871,2]
[360659259,1746918658192,-306.98064103,0.00019871,2]
[360659260,1746918658204,-400.0,0.00019871,2]
[360659261,1746918658214,-400.0,0.00019871,2]
[360659262,1746918658223,-400.0,0.00019871,2]
[360659263,1746918658233,-400.0,0.00019871,2]
[360659264,1746918658243,-400.0,0.00019871,2]
[360659265,1746918658252,-267.25770069,0.00019871,2]
[360659266,1746918658263,-440.97,0.00019871,2]
[360659267,1746918658274,-440.97,0.00019871,2]
[360659268,1746918658284,-440.97,0.00019871,2]
[360659269,1746918658294,-440.97,0.00019871,2]
[360659270,1746918658303,-440.97,0.00019871,2]
[360659271,1746918658313,-440.97,0.00019871,2]
[360659272,1746918658323,-440.97,0.00019871,2]
[360659273,1746918658332,-440.97,0.00019871,2]
[360659274,1746918658342,-400.0,0.00019871,2]
[360659275,1746918658351,-400.0,0.00019871,2]
[360659276,1746918658361,-400.0,0.00019871,2]
[360659277,1746918658370,-400.0,0.00019871,2]
[360659278,1746918658379,-400.0,0.00019871,2]
[360659279,1746918658388,-196.49,0.00019871,2]
[360659280,1746918658397,-300.0,0.00019871,2]
[360659281,1746918658407,-300.0,0.00019871,2]
[360659282,1746918658418,-300.0,0.00019871,2]
[360659283,1746918658426,-407.64,0.00019871,2]
[360659284,1746918658435,-400.0,0.00019871,2]
[360659285,1746918658444,-400.0,0.00019871,2]
[360659286,1746918658454,-400.0,0.00019871,2]
[360659287,1746918658463,-400.0,0.00019871,2]
[360659288,1746918658472,-400.0,0.00019871,2]
[360659289,1746918658482,-400.0,0.00019871,2]
[360659290,1746918658491,-400.0,0.00019871,2]
[360659291,1746918658501,-400.0,0.00019871,2]
[360659292,1746918658510,-400.0,0.00019871,2]
[360659293,1746918658519,-400.0,0.00019871,2]
[360659294,1746918658529,-400.0,0.00019871,2]
[360659295,1746918658538,-400.0,0.00019871,2]
[360659296,1746918658547,-400.0,0.00019871,2]
[360659297,1746918658558,-400.0,0.00019871,2]
[360659298,1746918658567,-400.0,0.00019871,2]
[360659299,1746918658576,-493.85,0.00019871,2]
[360659300,1746918658586,-400.0,0.00019871,2]
[360659301,1746918658595,-400.0,0.00019871,2]
[360659302,1746918658605,-400.0,0.00019871,2]
[360659303,1746918658615,-163.62211587,0.00019871,2]
[360659304,1746918658624,-527.17,0.00019871,2]
[360659305,1746918658634,-527.17,0.00019871,2]
[360659306,1746918658643,-527.17,0.00019871,2]
[360659307,1746918658653,-527.17,0.00019871,2]
[360659308,1746918658664,-527.17,0.00019871,2]
[360659309,1746918658673,-527.17,0.00019871,2]
[360659310,1746918658683,-527.17,0.00019871,2]
[360659311,1746918658692,-527.17,0.00019871,2]
[360659312,1746918658702,-151.0,0.00019871,2]
[360659313,1746918658711,-151.0,0.00019871,2]
[360659314,1746918658721,-152.569309,0.00019871,2]
[360659315,1746918658731,-400.0,0.00019871,2]
[360659316,1746918658741,-400.0,0.00019871,2]
[360659317,1746918658750,-400.0,0.00019871,2]
[360659318,1746918658759,-400.0,0.00019871,2]
[360659319,1746918658768,-400.0,0.00019871,2]
[360659320,1746918658778,-400.0,0.00019871,2]
[360659321,1746918658787,-400.0,0.00019871,2]
[360659322,1746918658796,-856.38,0.00019871,2]
[360659323,1746918658805,-856.38,0.00019871,2]
[360659324,1746918658815,-856.38,0.00019871,2]
[360659325,1746918658825,-400.0,0.00019871,2]
[360659326,1746918658834,-400.0,0.00019871,2]